[Event "Titled Tuesday Blitz April 4 Late 2023"]
[White "Makridis, Dimitrios"]
[Black "Goffredo_Fofi"]
[WhiteFideId "25864475"]
[WhiteElo "2277"]
[BlackElo "2513"]
[Result "1-0"]
[Round "04"]
[TimeControl "180+2"]
[Date "2023.04.04"]
[WhiteClock "0:01:15"]
[BlackClock "0:00:05"]

1. e4 {[%clk 0:02:58]}  Nf6 {[%clk 0:03:00]} 2. e5 {[%clk 0:02:58]}  Nd5 {[%clk 0:03:00]} 3. Bc4 {[%clk 0:02:56]}  Nb6 {[%clk 0:03:00]} 4. Bb3 {[%clk 0:02:56]}  d5 {[%clk 0:03:01]} 5. d4 {[%clk 0:02:57]}  Bf5 {[%clk 0:03:00]} 6. c3 {[%clk 0:02:55]}  e6 {[%clk 0:03:00]} 7. Ne2 {[%clk 0:02:55]}  c5 {[%clk 0:02:59]} 8. Nd2 {[%clk 0:02:55]}  Nc6 {[%clk 0:02:58]} 9. O-O {[%clk 0:02:54]}  h5 {[%clk 0:02:32]} 10. h3 {[%clk 0:02:50]}  Be7 {[%clk 0:02:31]} 11. Nf3 {[%clk 0:02:50]}  c4 {[%clk 0:02:17]} 12. Bc2 {[%clk 0:02:49]}  Bxc2 {[%clk 0:02:18]} 13. Qxc2 {[%clk 0:02:50]}  g5 {[%clk 0:02:18]} 14. Kh1 {[%clk 0:02:44]}  g4 {[%clk 0:02:12]} 15. Nh2 {[%clk 0:02:42]}  Qc7 {[%clk 0:01:59]} 16. b3 {[%clk 0:02:36]}  O-O-O {[%clk 0:01:58]} 17. b4 {[%clk 0:02:34]}  Rdg8 {[%clk 0:01:51]} 18. a4 {[%clk 0:02:32]}  Nd7 {[%clk 0:01:50]} 19. a5 {[%clk 0:02:30]}  Qd8 {[%clk 0:01:38]} 20. b5 {[%clk 0:02:28]}  Ncb8 {[%clk 0:01:38]} 21. Ba3 {[%clk 0:02:26]}  Nf8 {[%clk 0:01:33]} 22. Rg1 {[%clk 0:02:16]}  Bxa3 {[%clk 0:01:32]} 23. Rxa3 {[%clk 0:02:16]}  Nbd7 {[%clk 0:01:30]} 24. Qa4 {[%clk 0:02:14]}  Qe7 {[%clk 0:01:29]} 25. Raa1 {[%clk 0:02:13]}  Ng6 {[%clk 0:01:27]} 26. Qc2 {[%clk 0:02:02]}  Ndf8 {[%clk 0:01:24]} 27. Ra4 {[%clk 0:01:57]}  Nh7 {[%clk 0:01:21]} 28. a6 {[%clk 0:01:52]}  b6 {[%clk 0:01:20]} 29. f4 {[%clk 0:01:39]}  gxf3 {[%clk 0:00:48]} 30. Nxf3 {[%clk 0:01:37]}  Kb8 {[%clk 0:00:48]} 31. Raa1 {[%clk 0:01:36]}  Ng5 {[%clk 0:00:46]} 32. Nxg5 {[%clk 0:01:34]}  Qxg5 {[%clk 0:00:47]} 33. Raf1 {[%clk 0:01:34]}  Rg7 {[%clk 0:00:42]} 34. Rf2 {[%clk 0:01:33]}  Rhg8 {[%clk 0:00:40]} 35. Qc1 {[%clk 0:01:32]}  Qe7 {[%clk 0:00:26]} 36. Qh6 {[%clk 0:01:20]}  Nh4 {[%clk 0:00:26]} 37. Qxh5 {[%clk 0:01:19]}  Nf5 {[%clk 0:00:25]} 38. Rxf5 {[%clk 0:01:19]}  exf5 {[%clk 0:00:25]} 39. Nf4 {[%clk 0:01:20]}  Qd7 {[%clk 0:00:23]} 40. Qh6 {[%clk 0:01:18]}  Rg3 {[%clk 0:00:19]} 41. Rf1 {[%clk 0:01:14]}  Rxc3 {[%clk 0:00:18]} 42. e6 {[%clk 0:01:12]}  fxe6 {[%clk 0:00:17]} 43. Nxe6 {[%clk 0:01:13]}  Rcg3 {[%clk 0:00:16]} 44. Qf4+ {[%clk 0:01:12]}  Kc8 {[%clk 0:00:14]} 45. Qxf5 {[%clk 0:01:13]}  Rxg2 {[%clk 0:00:13]} 46. Qf8+ {[%clk 0:01:13]}  Qd8 {[%clk 0:00:09]} 47. Nxd8 {[%clk 0:01:11]}  Rg1+ {[%clk 0:00:09]} 48. Rxg1 {[%clk 0:01:11]}  Rxf8 {[%clk 0:00:09]} 49. Nc6 {[%clk 0:01:12]}  Rf7 {[%clk 0:00:06]} 50. Rg8+ {[%clk 0:01:11]}  Kc7 {[%clk 0:00:06]} 51. Nxa7 {[%clk 0:01:12]}  c3 {[%clk 0:00:05]} 52. Rc8+ {[%clk 0:01:13]}  Kd6 {[%clk 0:00:05]} 53. Rc6+ {[%clk 0:01:13]}  Kd7 {[%clk 0:00:05]} 54. Rxc3 {[%clk 0:01:14]}  Rf4 {[%clk 0:00:05]} 55. Nc6 {[%clk 0:01:14]}  Rf1+ {[%clk 0:00:04]} 56. Kg2 {[%clk 0:01:15]}  Rb1 {[%clk 0:00:05]} 57. Ra3 {[%clk 0:01:15]} 1-0


[Site "https://www.chess.com"]

[Event "Titled Tuesday Blitz April 4 Late 2023"]
[White "Roebers, Eline"]
[Black "Bilych, Olexiy"]
[WhiteFideId "1058401"]
[BlackFideId "14156504"]
[WhiteElo "2512"]
[BlackElo "2320"]
[Result "1-0"]
[Round "04"]
[TimeControl "180+2"]
[Date "2023.04.04"]
[WhiteClock "0:00:37"]
[BlackClock "0:00:38"]

1. e4 {[%clk 0:03:00]}  g6 {[%clk 0:03:00]} 2. d4 {[%clk 0:03:00]}  Bg7 {[%clk 0:03:01]} 3. Nc3 {[%clk 0:03:00]}  d6 {[%clk 0:03:02]} 4. f4 {[%clk 0:03:00]}  a6 {[%clk 0:03:03]} 5. Nf3 {[%clk 0:03:00]}  b5 {[%clk 0:03:03]} 6. Bd3 {[%clk 0:02:59]}  Nd7 {[%clk 0:03:03]} 7. a4 {[%clk 0:03:00]}  b4 {[%clk 0:03:03]} 8. Ne2 {[%clk 0:03:00]}  c5 {[%clk 0:03:04]} 9. c3 {[%clk 0:03:00]}  cxd4 {[%clk 0:03:00]} 10. cxd4 {[%clk 0:03:00]}  a5 {[%clk 0:02:59]} 11. O-O {[%clk 0:02:59]}  Ba6 {[%clk 0:02:54]} 12. Bxa6 {[%clk 0:02:58]}  Rxa6 {[%clk 0:02:54]} 13. Ng3 {[%clk 0:02:54]}  d5 {[%clk 0:02:51]} 14. e5 {[%clk 0:02:50]}  e6 {[%clk 0:02:51]} 15. Be3 {[%clk 0:02:40]}  Ne7 {[%clk 0:02:50]} 16. Ne2 {[%clk 0:02:39]}  O-O {[%clk 0:02:44]} 17. Bf2 {[%clk 0:02:38]}  Rc6 {[%clk 0:02:37]} 18. Bh4 {[%clk 0:02:35]}  Re8 {[%clk 0:02:27]} 19. Qd3 {[%clk 0:02:28]}  Qb6 {[%clk 0:02:19]} 20. Bxe7 {[%clk 0:02:26]}  Rxe7 {[%clk 0:02:19]} 21. g4 {[%clk 0:02:26]}  Qa6 {[%clk 0:02:08]} 22. Qd2 {[%clk 0:02:19]}  Nb6 {[%clk 0:02:06]} 23. b3 {[%clk 0:02:19]}  Rec7 {[%clk 0:02:05]} 24. Rac1 {[%clk 0:02:19]}  Qc8 {[%clk 0:02:05]} 25. Rxc6 {[%clk 0:02:17]}  Rxc6 {[%clk 0:02:06]} 26. Rc1 {[%clk 0:02:15]}  Rxc1+ {[%clk 0:02:03]} 27. Qxc1 {[%clk 0:02:16]}  Qxc1+ {[%clk 0:02:02]} 28. Nxc1 {[%clk 0:02:16]}  f6 {[%clk 0:02:00]} 29. Nd3 {[%clk 0:02:15]}  f5 {[%clk 0:01:59]} 30. gxf5 {[%clk 0:02:12]}  gxf5 {[%clk 0:02:00]} 31. Nc5 {[%clk 0:02:10]}  Bh6 {[%clk 0:01:53]} 32. Nxe6 {[%clk 0:02:00]}  Kf7 {[%clk 0:01:54]} 33. Nd8+ {[%clk 0:01:49]}  Ke8 {[%clk 0:01:48]} 34. Nc6 {[%clk 0:01:50]}  Bxf4 {[%clk 0:01:46]} 35. Nxa5 {[%clk 0:01:48]}  Kd7 {[%clk 0:01:45]} 36. Nb7 {[%clk 0:01:45]}  Kc6 {[%clk 0:01:40]} 37. Nc5 {[%clk 0:01:45]}  Be3+ {[%clk 0:01:31]} 38. Kf1 {[%clk 0:01:38]}  Bxd4 {[%clk 0:01:27]} 39. Nxd4+ {[%clk 0:01:38]}  Kxc5 {[%clk 0:01:27]} 40. e6 {[%clk 0:01:32]}  Kd6 {[%clk 0:01:24]} 41. a5 {[%clk 0:01:30]}  Nc8 {[%clk 0:01:22]} 42. a6 {[%clk 0:01:23]}  Kc7 {[%clk 0:01:20]} 43. Nxf5 {[%clk 0:01:23]}  d4 {[%clk 0:01:14]} 44. Ke2 {[%clk 0:01:21]}  Na7 {[%clk 0:01:08]} 45. Kd3 {[%clk 0:01:17]}  Nc6 {[%clk 0:01:08]} 46. Nxd4 {[%clk 0:01:12]}  Ne7 {[%clk 0:01:09]} 47. a7 {[%clk 0:01:06]}  Kb7 {[%clk 0:01:09]} 48. Nb5 {[%clk 0:01:06]}  h5 {[%clk 0:01:02]} 49. Kc4 {[%clk 0:01:03]}  h4 {[%clk 0:00:59]} 50. h3 {[%clk 0:00:59]}  Ka8 {[%clk 0:00:55]} 51. Kc5 {[%clk 0:00:58]}  Nc8 {[%clk 0:00:53]} 52. Kc6 {[%clk 0:00:52]}  Nb6 {[%clk 0:00:52]} 53. e7 {[%clk 0:00:51]}  Nc8 {[%clk 0:00:53]} 54. Kd7 {[%clk 0:00:47]}  Nb6+ {[%clk 0:00:52]} 55. Ke6 {[%clk 0:00:47]}  Kb7 {[%clk 0:00:43]} 56. e8=Q {[%clk 0:00:46]}  Na8 {[%clk 0:00:39]} 57. Qb8+ {[%clk 0:00:43]}  Ka6 {[%clk 0:00:37]} 58. Qxa8 {[%clk 0:00:43]}  Ka5 {[%clk 0:00:37]} 59. Qc8 {[%clk 0:00:37]}  Kb6 {[%clk 0:00:37]} 60. a8=Q {[%clk 0:00:37]}  Kxb5 {[%clk 0:00:38]} 61. Qaa6# {[%clk 0:00:37]} 1-0


[Site "https://www.chess.com"]

[Event "Titled Tuesday Blitz April 4 Late 2023"]
[White "Kilic, Eray"]
[Black "Becerra, Juan David"]
[WhiteFideId "44517173"]
[BlackFideId "4404998"]
[WhiteElo "2328"]
[BlackElo "2276"]
[Result "1-0"]
[Round "04"]
[TimeControl "180+2"]
[Date "2023.04.04"]
[WhiteClock "0:00:37"]
[BlackClock "0:00:03"]

1. d4 {[%clk 0:03:00]}  d5 {[%clk 0:02:57]} 2. Nc3 {[%clk 0:03:01]}  Nf6 {[%clk 0:02:56]} 3. Bf4 {[%clk 0:03:01]}  c6 {[%clk 0:02:53]} 4. e3 {[%clk 0:03:01]}  Bg4 {[%clk 0:02:51]} 5. f3 {[%clk 0:03:00]}  Bh5 {[%clk 0:02:43]} 6. h4 {[%clk 0:02:59]}  Bg6 {[%clk 0:02:44]} 7. Bd3 {[%clk 0:02:58]}  Qb6 {[%clk 0:02:38]} 8. Rb1 {[%clk 0:02:56]}  Nbd7 {[%clk 0:02:35]} 9. g4 {[%clk 0:02:53]}  Bxd3 {[%clk 0:02:26]} 10. Qxd3 {[%clk 0:02:51]}  e6 {[%clk 0:02:20]} 11. Nge2 {[%clk 0:02:50]}  a5 {[%clk 0:01:57]} 12. h5 {[%clk 0:02:46]}  h6 {[%clk 0:01:57]} 13. a3 {[%clk 0:02:36]}  Qa6 {[%clk 0:01:51]} 14. Qd2 {[%clk 0:02:32]}  b5 {[%clk 0:01:40]} 15. b4 {[%clk 0:02:32]}  Nb6 {[%clk 0:01:38]} 16. Kf2 {[%clk 0:02:17]}  Nc4 {[%clk 0:01:37]} 17. Qc1 {[%clk 0:02:17]}  Be7 {[%clk 0:01:10]} 18. Ng3 {[%clk 0:02:07]}  axb4 {[%clk 0:01:06]} 19. axb4 {[%clk 0:02:07]}  Qa3 {[%clk 0:01:07]} 20. Ra1 {[%clk 0:01:40]}  Qxa1 {[%clk 0:01:00]} 21. Qxa1 {[%clk 0:01:41]}  Rxa1 {[%clk 0:00:59]} 22. Rxa1 {[%clk 0:01:42]}  O-O {[%clk 0:00:58]} 23. Ra6 {[%clk 0:01:43]}  Rc8 {[%clk 0:00:55]} 24. Na2 {[%clk 0:01:40]}  Bf8 {[%clk 0:00:41]} 25. Ne2 {[%clk 0:01:38]}  Nd7 {[%clk 0:00:41]} 26. Nec1 {[%clk 0:01:38]}  Ndb6 {[%clk 0:00:41]} 27. Nd3 {[%clk 0:01:37]}  Ra8 {[%clk 0:00:36]} 28. Rxa8 {[%clk 0:01:33]}  Nxa8 {[%clk 0:00:37]} 29. Ne5 {[%clk 0:01:15]}  Nxe5 {[%clk 0:00:35]} 30. Bxe5 {[%clk 0:01:16]}  Nb6 {[%clk 0:00:32]} 31. Ke2 {[%clk 0:01:16]}  f6 {[%clk 0:00:32]} 32. Bc7 {[%clk 0:01:14]}  Nc4 {[%clk 0:00:24]} 33. c3 {[%clk 0:01:15]}  Kf7 {[%clk 0:00:20]} 34. Bg3 {[%clk 0:01:12]}  Ke8 {[%clk 0:00:19]} 35. Nc1 {[%clk 0:01:12]}  Kd7 {[%clk 0:00:20]} 36. Nd3 {[%clk 0:01:10]}  Nb6 {[%clk 0:00:18]} 37. Kd2 {[%clk 0:01:09]}  Nc4+ {[%clk 0:00:18]} 38. Ke2 {[%clk 0:01:10]}  Nb6 {[%clk 0:00:18]} 39. e4 {[%clk 0:01:09]}  Nc4 {[%clk 0:00:18]} 40. Bh4 {[%clk 0:01:02]}  Nb6 {[%clk 0:00:17]} 41. e5 {[%clk 0:01:02]}  Be7 {[%clk 0:00:14]} 42. Nc5+ {[%clk 0:00:58]}  Bxc5 {[%clk 0:00:13]} 43. bxc5 {[%clk 0:00:59]}  Na4 {[%clk 0:00:13]} 44. exf6 {[%clk 0:00:59]}  gxf6 {[%clk 0:00:13]} 45. Bxf6 {[%clk 0:00:51]}  Nxc3+ {[%clk 0:00:12]} 46. Kd3 {[%clk 0:00:51]}  Nd1 {[%clk 0:00:06]} 47. g5 {[%clk 0:00:38]}  Nf2+ {[%clk 0:00:02]} 48. Ke3 {[%clk 0:00:35]}  b4 {[%clk 0:00:01]} 49. gxh6 {[%clk 0:00:36]}  b3 {[%clk 0:00:02]} 50. h7 {[%clk 0:00:36]}  b2 {[%clk 0:00:02]} 51. h8=Q {[%clk 0:00:36]}  b1=Q {[%clk 0:00:03]} 52. Qd8# {[%clk 0:00:37]} 1-0


[Site "https://www.chess.com"]

[Event "Titled Tuesday Blitz April 4 Late 2023"]
[White "koteRV1610"]
[Black "Tworuszka, Michal"]
[BlackFideId "1117858"]
[WhiteElo "2727"]
[BlackElo "2473"]
[Result "0-1"]
[Round "04"]
[TimeControl "180+2"]
[Date "2023.04.04"]
[WhiteClock "0:00:12"]
[BlackClock "0:00:28"]

1. d4 {[%clk 0:03:00]}  Nf6 {[%clk 0:02:55]} 2. c4 {[%clk 0:03:00]}  e6 {[%clk 0:02:55]} 3. Nf3 {[%clk 0:03:00]}  b6 {[%clk 0:02:55]} 4. g3 {[%clk 0:02:58]}  Ba6 {[%clk 0:02:55]} 5. Qc2 {[%clk 0:02:58]}  c5 {[%clk 0:02:54]} 6. Bg2 {[%clk 0:02:41]}  Bb7 {[%clk 0:02:51]} 7. O-O {[%clk 0:02:25]}  cxd4 {[%clk 0:02:51]} 8. Nxd4 {[%clk 0:02:26]}  Bxg2 {[%clk 0:02:51]} 9. Kxg2 {[%clk 0:02:27]}  Qc8 {[%clk 0:02:49]} 10. Bf4 {[%clk 0:02:18]}  a6 {[%clk 0:02:41]} 11. Nd2 {[%clk 0:02:13]}  Nc6 {[%clk 0:02:35]} 12. N4f3 {[%clk 0:01:49]}  Be7 {[%clk 0:02:26]} 13. Rac1 {[%clk 0:01:46]}  O-O {[%clk 0:02:26]} 14. a3 {[%clk 0:01:41]}  Qb7 {[%clk 0:02:25]} 15. Kg1 {[%clk 0:01:40]}  Rac8 {[%clk 0:02:25]} 16. Qd3 {[%clk 0:01:36]}  d5 {[%clk 0:02:18]} 17. b4 {[%clk 0:01:24]}  Rfd8 {[%clk 0:02:16]} 18. Qb3 {[%clk 0:01:21]}  a5 {[%clk 0:02:06]} 19. b5 {[%clk 0:01:02]}  Nb8 {[%clk 0:02:00]} 20. Ne5 {[%clk 0:00:52]}  Nfd7 {[%clk 0:01:48]} 21. cxd5 {[%clk 0:00:31]}  Nc5 {[%clk 0:01:48]} 22. Qf3 {[%clk 0:00:27]}  Qxd5 {[%clk 0:01:43]} 23. Ndc4 {[%clk 0:00:24]}  Qxf3 {[%clk 0:01:42]} 24. Nxf3 {[%clk 0:00:22]}  Nbd7 {[%clk 0:01:39]} 25. Nfe5 {[%clk 0:00:18]}  Nxe5 {[%clk 0:01:29]} 26. Nxe5 {[%clk 0:00:18]}  Bf6 {[%clk 0:01:13]} 27. Nc6 {[%clk 0:00:18]}  Rd5 {[%clk 0:01:04]} 28. Rcd1 {[%clk 0:00:18]}  Ne4 {[%clk 0:00:31]} 29. f3 {[%clk 0:00:15]}  Nc3 {[%clk 0:00:30]} 30. Rxd5 {[%clk 0:00:15]}  exd5 {[%clk 0:00:29]} 31. a4 {[%clk 0:00:13]}  Nxe2+ {[%clk 0:00:29]} 32. Kf2 {[%clk 0:00:14]}  Nxf4 {[%clk 0:00:29]} 33. gxf4 {[%clk 0:00:15]}  d4 {[%clk 0:00:27]} 34. Rd1 {[%clk 0:00:15]}  Kf8 {[%clk 0:00:27]} 35. Ke2 {[%clk 0:00:14]}  Re8+ {[%clk 0:00:27]} 36. Kd3 {[%clk 0:00:14]}  Re3+ {[%clk 0:00:27]} 37. Kc4 {[%clk 0:00:14]}  Rxf3 {[%clk 0:00:27]} 38. Nxd4 {[%clk 0:00:09]}  Rxf4 {[%clk 0:00:27]} 39. Kd5 {[%clk 0:00:10]}  Rxd4+ {[%clk 0:00:27]} 40. Rxd4 {[%clk 0:00:11]}  Bxd4 {[%clk 0:00:27]} 41. Kxd4 {[%clk 0:00:11]}  Ke7 {[%clk 0:00:27]} 42. Kd5 {[%clk 0:00:12]}  Kd7 {[%clk 0:00:28]} 0-1


[Site "https://www.chess.com"]

[Event "Titled Tuesday Blitz April 4 Late 2023"]
[White "Marczuk, Dominik"]
[Black "Iliaguev, Nisim"]
[WhiteFideId "1111264"]
[BlackFideId "2817276"]
[WhiteElo "2174"]
[BlackElo "2241"]
[Result "0-1"]
[Round "04"]
[TimeControl "180+2"]
[Date "2023.04.04"]
[WhiteClock "0:00:02"]
[BlackClock "0:01:03"]

1. e4 {[%clk 0:02:59]}  c6 {[%clk 0:02:59]} 2. d4 {[%clk 0:02:59]}  d5 {[%clk 0:03:00]} 3. f3 {[%clk 0:03:00]}  e6 {[%clk 0:02:59]} 4. Be3 {[%clk 0:03:00]}  Nf6 {[%clk 0:02:58]} 5. e5 {[%clk 0:02:58]}  Nfd7 {[%clk 0:02:59]} 6. c3 {[%clk 0:02:58]}  c5 {[%clk 0:02:59]} 7. f4 {[%clk 0:02:59]}  Nc6 {[%clk 0:03:00]} 8. Nf3 {[%clk 0:02:59]}  Rb8 {[%clk 0:02:59]} 9. Bd3 {[%clk 0:02:45]}  g6 {[%clk 0:02:56]} 10. O-O {[%clk 0:02:46]}  b5 {[%clk 0:02:55]} 11. a3 {[%clk 0:02:43]}  a5 {[%clk 0:02:54]} 12. g4 {[%clk 0:01:53]}  Qb6 {[%clk 0:02:53]} 13. f5 {[%clk 0:01:48]}  cxd4 {[%clk 0:02:53]} 14. cxd4 {[%clk 0:01:48]}  Ndxe5 {[%clk 0:02:50]} 15. Nxe5 {[%clk 0:01:46]}  Nxe5 {[%clk 0:02:50]} 16. fxg6 {[%clk 0:01:41]}  hxg6 {[%clk 0:02:48]} 17. Nc3 {[%clk 0:01:17]}  Nxd3 {[%clk 0:02:42]} 18. Qxd3 {[%clk 0:01:17]}  Ba6 {[%clk 0:02:37]} 19. Qd2 {[%clk 0:01:08]}  b4 {[%clk 0:02:33]} 20. Ne2 {[%clk 0:01:09]}  Bd6 {[%clk 0:02:30]} 21. Rf2 {[%clk 0:01:00]}  bxa3 {[%clk 0:02:24]} 22. bxa3 {[%clk 0:01:00]}  Qb2 {[%clk 0:02:22]} 23. Raf1 {[%clk 0:00:47]}  Qxd2 {[%clk 0:02:18]} 24. Bxd2 {[%clk 0:00:48]}  Rxh2 {[%clk 0:01:59]} 25. Rxh2 {[%clk 0:00:35]}  Bxh2+ {[%clk 0:02:00]} 26. Kxh2 {[%clk 0:00:36]}  Bxe2 {[%clk 0:02:01]} 27. Rf2 {[%clk 0:00:36]}  Bxg4 {[%clk 0:01:58]} 28. Bxa5 {[%clk 0:00:37]}  Bd1 {[%clk 0:01:49]} 29. Bb4 {[%clk 0:00:36]}  Ba4 {[%clk 0:01:47]} 30. Kg3 {[%clk 0:00:35]}  Rc8 {[%clk 0:01:35]} 31. Kf4 {[%clk 0:00:32]}  f6 {[%clk 0:01:33]} 32. Rh2 {[%clk 0:00:31]}  g5+ {[%clk 0:01:31]} 33. Ke3 {[%clk 0:00:25]}  Kf7 {[%clk 0:01:30]} 34. Rh7+ {[%clk 0:00:25]}  Kg6 {[%clk 0:01:31]} 35. Re7 {[%clk 0:00:25]}  Kf5 {[%clk 0:01:30]} 36. Ra7 {[%clk 0:00:22]}  Bb3 {[%clk 0:01:31]} 37. a4 {[%clk 0:00:20]}  Rc4 {[%clk 0:01:31]} 38. Rb7 {[%clk 0:00:04]}  Bxa4 {[%clk 0:01:31]} 39. Be7 {[%clk 0:00:03]}  Rc3+ {[%clk 0:01:31]} 40. Kd2 {[%clk 0:00:03]}  Rf3 {[%clk 0:01:30]} 41. Bc5 {[%clk 0:00:02]}  Bb3 {[%clk 0:01:27]} 42. Rb8 {[%clk 0:00:02]}  Bc4 {[%clk 0:01:26]} 43. Rf8 {[%clk 0:00:03]}  Kg6 {[%clk 0:01:18]} 44. Re8 {[%clk 0:00:03]}  Kf5 {[%clk 0:01:12]} 45. Rf8 {[%clk 0:00:04]}  Ke4 {[%clk 0:01:09]} 46. Re8 {[%clk 0:00:03]}  e5 {[%clk 0:01:09]} 47. dxe5 {[%clk 0:00:04]}  fxe5 {[%clk 0:01:10]} 48. Bd6 {[%clk 0:00:04]}  Rf5 {[%clk 0:01:11]} 49. Re7 {[%clk 0:00:04]}  g4 {[%clk 0:01:08]} 50. Rg7 {[%clk 0:00:03]}  Kf3 {[%clk 0:01:08]} 51. Re7 {[%clk 0:00:04]}  e4 {[%clk 0:01:08]} 52. Rh7 {[%clk 0:00:02]}  d4 {[%clk 0:01:05]} 53. Bc5 {[%clk 0:00:02]}  e3+ {[%clk 0:01:05]} 54. Ke1 {[%clk 0:00:02]}  Rxc5 {[%clk 0:01:05]} 55. Rd7 {[%clk 0:00:02]}  d3 {[%clk 0:01:03]} 0-1


[Site "https://www.chess.com"]

[Event "Titled Tuesday Blitz April 4 Late 2023"]
[White "Rodshtein, Maxim"]
[Black "Zeman, Matyas"]
[WhiteFideId "2806851"]
[BlackFideId "364398"]
[WhiteElo "2555"]
[BlackElo "2254"]
[Result "1-0"]
[Round "04"]
[TimeControl "180+2"]
[Date "2023.04.04"]
[WhiteClock "0:00:19"]
[BlackClock "0:00:04"]

1. e4 {[%clk 0:03:00]}  c5 {[%clk 0:02:59]} 2. Ne2 {[%clk 0:02:59]}  Nc6 {[%clk 0:02:58]} 3. Nbc3 {[%clk 0:02:57]}  g6 {[%clk 0:02:57]} 4. d4 {[%clk 0:02:56]}  cxd4 {[%clk 0:02:57]} 5. Nxd4 {[%clk 0:02:57]}  Bg7 {[%clk 0:02:58]} 6. Be3 {[%clk 0:02:57]}  Nf6 {[%clk 0:02:57]} 7. Be2 {[%clk 0:02:56]}  O-O {[%clk 0:02:57]} 8. O-O {[%clk 0:02:56]}  d5 {[%clk 0:02:51]} 9. exd5 {[%clk 0:02:54]}  Nxd5 {[%clk 0:02:49]} 10. Nxd5 {[%clk 0:02:53]}  Qxd5 {[%clk 0:02:43]} 11. Bf3 {[%clk 0:02:53]}  Qc4 {[%clk 0:02:42]} 12. Nxc6 {[%clk 0:02:49]}  bxc6 {[%clk 0:02:42]} 13. c3 {[%clk 0:02:49]}  Be6 {[%clk 0:02:37]} 14. Re1 {[%clk 0:02:45]}  Bd5 {[%clk 0:02:31]} 15. Be2 {[%clk 0:02:35]}  Qe4 {[%clk 0:02:25]} 16. Bf1 {[%clk 0:02:35]}  Qh4 {[%clk 0:02:17]} 17. Bc5 {[%clk 0:02:27]}  Rfe8 {[%clk 0:02:11]} 18. g3 {[%clk 0:02:23]}  Qf6 {[%clk 0:01:49]} 19. Qe2 {[%clk 0:02:12]}  e5 {[%clk 0:01:42]} 20. Qe3 {[%clk 0:02:10]}  a5 {[%clk 0:01:22]} 21. b3 {[%clk 0:02:03]}  Qf3 {[%clk 0:00:52]} 22. Qxf3 {[%clk 0:01:58]}  Bxf3 {[%clk 0:00:53]} 23. Be2 {[%clk 0:01:25]}  Bxe2 {[%clk 0:00:51]} 24. Rxe2 {[%clk 0:01:25]}  e4 {[%clk 0:00:52]} 25. Rc1 {[%clk 0:01:24]}  f5 {[%clk 0:00:48]} 26. c4 {[%clk 0:01:20]}  Kf7 {[%clk 0:00:43]} 27. Kg2 {[%clk 0:01:19]}  Red8 {[%clk 0:00:41]} 28. f3 {[%clk 0:01:17]}  exf3+ {[%clk 0:00:41]} 29. Kxf3 {[%clk 0:01:18]}  Re8 {[%clk 0:00:29]} 30. Rce1 {[%clk 0:01:16]}  Rxe2 {[%clk 0:00:18]} 31. Rxe2 {[%clk 0:01:17]}  Bf6 {[%clk 0:00:17]} 32. Rd2 {[%clk 0:01:13]}  Rd8 {[%clk 0:00:15]} 33. Rxd8 {[%clk 0:00:40]}  Bxd8 {[%clk 0:00:16]} 34. Ke3 {[%clk 0:00:37]}  Ke6 {[%clk 0:00:16]} 35. Kd3 {[%clk 0:00:36]}  g5 {[%clk 0:00:16]} 36. b4 {[%clk 0:00:31]}  axb4 {[%clk 0:00:15]} 37. Bxb4 {[%clk 0:00:31]}  Bb6 {[%clk 0:00:11]} 38. a4 {[%clk 0:00:31]}  h5 {[%clk 0:00:09]} 39. Bd2 {[%clk 0:00:30]}  Ke5 {[%clk 0:00:06]} 40. Bxg5 {[%clk 0:00:28]}  Bg1 {[%clk 0:00:06]} 41. h4 {[%clk 0:00:27]}  Bb6 {[%clk 0:00:03]} 42. Bd2 {[%clk 0:00:26]}  c5 {[%clk 0:00:01]} 43. a5 {[%clk 0:00:25]}  Ba7 {[%clk 0:00:02]} 44. a6 {[%clk 0:00:25]}  Ke6 {[%clk 0:00:02]} 45. Bf4 {[%clk 0:00:22]}  Kd7 {[%clk 0:00:02]} 46. Ke3 {[%clk 0:00:22]}  Kc6 {[%clk 0:00:02]} 47. Be5 {[%clk 0:00:19]}  Kb6 {[%clk 0:00:01]} 48. Kf4 {[%clk 0:00:20]}  Kxa6 {[%clk 0:00:02]} 49. Kxf5 {[%clk 0:00:21]}  Ka5 {[%clk 0:00:03]} 50. g4 {[%clk 0:00:19]}  Kb4 {[%clk 0:00:04]} 51. gxh5 {[%clk 0:00:19]}  Kxc4 {[%clk 0:00:04]} 52. h6 {[%clk 0:00:19]} 1-0


[Site "https://www.chess.com"]

[Event "Titled Tuesday Blitz April 4 Late 2023"]
[White "Lopez Del Alamo, Antonio"]
[Black "Ezat, Mohamed"]
[WhiteFideId "2227339"]
[BlackFideId "10600906"]
[WhiteElo "2175"]
[BlackElo "2386"]
[Result "0-1"]
[Round "04"]
[TimeControl "180+2"]
[Date "2023.04.04"]
[WhiteClock "0:00:05"]
[BlackClock "0:00:21"]

1. e4 {[%clk 0:02:40]}  c6 {[%clk 0:02:58]} 2. d4 {[%clk 0:02:38]}  d5 {[%clk 0:02:59]} 3. exd5 {[%clk 0:02:37]}  cxd5 {[%clk 0:02:59]} 4. c3 {[%clk 0:02:38]}  Nc6 {[%clk 0:02:58]} 5. Bd3 {[%clk 0:02:38]}  Qc7 {[%clk 0:02:57]} 6. h3 {[%clk 0:02:37]}  g6 {[%clk 0:02:57]} 7. Nf3 {[%clk 0:02:36]}  Nh6 {[%clk 0:02:57]} 8. O-O {[%clk 0:02:35]}  Bf5 {[%clk 0:02:58]} 9. Be2 {[%clk 0:02:36]}  Bg7 {[%clk 0:02:56]} 10. Re1 {[%clk 0:02:34]}  O-O {[%clk 0:02:56]} 11. Nbd2 {[%clk 0:02:34]}  f6 {[%clk 0:02:55]} 12. Nf1 {[%clk 0:02:32]}  Nf7 {[%clk 0:02:53]} 13. Ng3 {[%clk 0:02:31]}  Bd7 {[%clk 0:02:53]} 14. Bd3 {[%clk 0:02:27]}  Kh8 {[%clk 0:02:52]} 15. Nh4 {[%clk 0:02:00]}  f5 {[%clk 0:02:43]} 16. Nf3 {[%clk 0:01:50]}  e5 {[%clk 0:02:42]} 17. dxe5 {[%clk 0:01:48]}  Nfxe5 {[%clk 0:02:41]} 18. Nxe5 {[%clk 0:01:46]}  Nxe5 {[%clk 0:02:39]} 19. Bf4 {[%clk 0:01:44]}  Rae8 {[%clk 0:02:38]} 20. Bc2 {[%clk 0:01:16]}  Qc5 {[%clk 0:02:21]} 21. Bb3 {[%clk 0:00:59]}  Bc6 {[%clk 0:02:13]} 22. Be3 {[%clk 0:00:49]}  Qa5 {[%clk 0:02:08]} 23. Bd4 {[%clk 0:00:49]}  f4 {[%clk 0:02:08]} 24. Nf1 {[%clk 0:00:47]}  f3 {[%clk 0:02:07]} 25. g3 {[%clk 0:00:45]}  Qc7 {[%clk 0:02:03]} 26. Qd2 {[%clk 0:00:36]}  Qd7 {[%clk 0:01:46]} 27. Kh2 {[%clk 0:00:34]}  Rf5 {[%clk 0:01:33]} 28. g4 {[%clk 0:00:28]}  Rff8 {[%clk 0:01:27]} 29. Ng3 {[%clk 0:00:28]}  Nc4 {[%clk 0:00:52]} 30. Bxc4 {[%clk 0:00:28]}  dxc4 {[%clk 0:00:52]} 31. Rxe8 {[%clk 0:00:28]}  Rxe8 {[%clk 0:00:51]} 32. Rd1 {[%clk 0:00:28]}  Bxd4 {[%clk 0:00:47]} 33. Qxd4+ {[%clk 0:00:28]}  Qxd4 {[%clk 0:00:47]} 34. Rxd4 {[%clk 0:00:24]}  Re2 {[%clk 0:00:44]} 35. Kg1 {[%clk 0:00:14]}  Rxb2 {[%clk 0:00:43]} 36. Rxc4 {[%clk 0:00:12]}  Rxa2 {[%clk 0:00:43]} 37. Ne4 {[%clk 0:00:11]}  Ra4 {[%clk 0:00:40]} 38. Rxa4 {[%clk 0:00:07]}  Bxa4 {[%clk 0:00:40]} 39. Nc5 {[%clk 0:00:08]}  Bc6 {[%clk 0:00:40]} 40. Kh2 {[%clk 0:00:08]}  b6 {[%clk 0:00:40]} 41. Nb3 {[%clk 0:00:08]}  a5 {[%clk 0:00:39]} 42. Kg3 {[%clk 0:00:08]}  a4 {[%clk 0:00:34]} 43. Nd4 {[%clk 0:00:08]}  a3 {[%clk 0:00:32]} 44. Nc2 {[%clk 0:00:05]}  a2 {[%clk 0:00:29]} 45. Kf4 {[%clk 0:00:05]}  Kg7 {[%clk 0:00:27]} 46. Ke5 {[%clk 0:00:05]}  h5 {[%clk 0:00:25]} 47. Kd6 {[%clk 0:00:05]}  Ba4 {[%clk 0:00:25]} 48. Na1 {[%clk 0:00:05]}  hxg4 {[%clk 0:00:25]} 49. hxg4 {[%clk 0:00:04]}  Kf6 {[%clk 0:00:25]} 50. Kc7 {[%clk 0:00:04]}  b5 {[%clk 0:00:22]} 51. Kd6 {[%clk 0:00:05]}  Kg5 {[%clk 0:00:22]} 52. Ke5 {[%clk 0:00:05]}  Kxg4 {[%clk 0:00:22]} 53. Kd4 {[%clk 0:00:05]}  Kh3 {[%clk 0:00:21]} 54. c4 {[%clk 0:00:06]}  bxc4 {[%clk 0:00:20]} 55. Kxc4 {[%clk 0:00:05]}  Kg2 {[%clk 0:00:21]} 0-1


[Site "https://www.chess.com"]